bitfinex-derivatives/quotes_BNBF0:USTF0_20250331
["timestamp","ask_amount","ask_price","bid_price","bid_amount"]
[1743423462467,1.49563869,594.33,593.66,0.33689317]
[1743423462667,2.75367204,594.32,593.66,0.33689317]
[1743423462866,1.25803335,594.32,593.66,0.33689317]
[1743423463473,3.27075471,594.31,593.66,0.33689317]
[1743423463970,1.49546955,594.3,593.66,0.33689317]
[1743423464171,3.27075471,594.3,593.66,0.33689317]
[1743423464669,1.49537206,594.29,593.66,0.33689317]
[1743423464876,1.49537206,594.28,593.66,0.33689317]
[1743423465176,1.49537206,594.27,593.66,0.33689317]
[1743423465372,1.49537206,594.26,593.66,0.33689317]
[1743423465670,1.49526474,594.25,593.66,0.33689317]
[1743423465874,3.27075471,594.26,593.66,0.33689317]
[1743423466074,1.25803335,594.24,593.66,0.33689317]
[1743423466567,1.25803335,594.23,593.66,0.33689317]
[1743423467168,1.446,594.22,593.66,0.33689317]
[1743423467373,2.70403335,594.22,593.66,0.33689317]
[1743423467769,1.25803335,594.21,593.66,0.33689317]
[1743423468179,1.25803335,594.2,593.66,0.33689317]
[1743423468973,1.25803335,594.19,593.66,0.33689317]
[1743423469773,2.85503335,594.19,593.66,0.33689317]
[1743423469982,1.597,594.19,593.66,0.33689317]
[1743423470273,2.721,594.19,593.66,0.33689317]
[1743423471677,4.11,594.19,593.66,0.33689317]
[1743423484782,4.433,594.19,593.66,0.33689317]
[1743423492286,6.34,594.19,593.66,0.33689317]
[1743423492891,7.686,594.19,593.66,0.33689317]
[1743423496491,1.26310566,594.18,593.66,0.33689317]
[1743423497094,1.26310566,594.17,593.66,0.33689317]
[1743423497793,4.7,594.19,593.66,0.33689317]
[1743423499589,6.044,594.19,593.66,0.33689317]
[1743423500496,7.264,594.19,593.66,0.33689317]
[1743423502089,1.26395807,594.18,593.66,0.33689317]
[1743423502496,1.26395807,594.17,593.66,0.33689317]
[1743423502896,1.50308157,594.16,593.66,0.33689317]
[1743423503096,1.26395807,594.16,593.66,0.33689317]
[1743423503296,1.50333643,594.15,593.66,0.33689317]
[1743423503498,1.26395807,594.15,593.66,0.33689317]
[1743423503997,1.26395807,594.14,593.66,0.33689317]
[1743423504698,1.26395807,594.13,593.66,0.33689317]
[1743423505301,1.26395807,594.12,593.66,0.33689317]
[1743423505695,3.06443151,594.11,593.66,0.33689317]
[1743423505897,2.82495807,594.11,593.66,0.33689317]
[1743423506201,1.26395807,594.1,593.66,0.33689317]
[1743423506995,1.26395807,594.09,593.66,0.33689317]
[1743423507702,1.26395807,594.08,593.66,0.33689317]
[1743423507902,2.58295807,594.08,593.66,0.33689317]
[1743423508303,1.319,594.08,593.66,0.33689317]
[1743423508897,2.641,594.08,593.66,0.33689317]
[1743423510703,1.26443738,594.07,593.66,0.33689317]
[1743423511605,1.26443738,594.06,593.66,0.33689317]
[1743423512506,1.58743738,594.05,593.66,0.33689317]
[1743423513006,1.50288945,594.04,593.66,0.33689317]
[1743423513202,1.26443738,594.04,593.66,0.33689317]
[1743423513902,2.44093494,594.03,593.66,0.33689317]
[1743423514100,2.44093494,594.02,593.66,0.33689317]
[1743423514305,1.50233003,594.01,593.66,0.33689317]
[1743423514607,1.50233003,594.0,593.66,0.33689317]
[1743423514802,2.43982772,593.99,593.66,0.33689317]
[1743423515002,2.43982772,593.98,593.66,0.33689317]
[1743423515206,2.43982196,593.97,593.66,0.33689317]
[1743423515502,5.72491254,593.96,592.86,2.5552563]
[1743423515707,2.43939969,593.95,593.18,0.2931094]
[1743423515909,2.43939969,593.94,593.18,0.2931094]
[1743423516106,2.43939969,593.93,592.88,0.33733639]
[1743423516305,1.50167499,593.92,592.88,0.33733639]
[1743423516502,3.28551285,593.95,592.88,0.33733639]
[1743423516702,3.28551285,593.91,592.88,0.33733639]
[1743423517205,3.28551285,593.91,592.89,0.29317484]
[1743423517409,1.26443738,593.9,592.91,0.33731932]
[1743423518108,0.29316249,594.01,592.91,0.33731932]
[1743423518307,1.4991924,594.0,592.91,0.33731932]
[1743423518508,1.4991924,593.99,592.91,0.33731932]
[1743423518708,0.323,594.05,592.91,0.33731932]
[1743423519008,3.27765679,593.99,592.91,0.33731932]
[1743423519209,1.49861819,593.98,592.91,0.33731932]
[1743423519411,1.26063723,593.98,592.91,0.33731932]
[1743423520006,1.26063723,593.97,592.91,0.33731932]
[1743423520409,1.26063723,593.96,592.91,0.33731932]
[1743423521010,1.26063723,593.95,592.91,0.33731932]
[1743423521807,1.26063723,593.94,592.91,0.33731932]
[1743423522208,2.43263723,593.94,592.91,0.33731932]
[1743423522413,1.26063723,593.93,592.91,0.33731932]
[1743423523306,1.26063723,593.92,592.91,0.33731932]
[1743423523510,1.023,593.92,592.91,0.33731932]
[1743423527713,1.023,593.92,593.0,2.5552563]
[1743423528116,1.023,593.92,593.02,0.33725675]
[1743423529317,0.323,593.91,593.02,0.33725675]
[1743423530117,0.323,593.91,593.05,2.5552563]
[1743423530316,0.323,593.91,593.07,0.33722832]
[1743423531418,1.109,593.9,593.07,0.33722832]
[1743423532922,1.726,593.89,593.07,0.33722832]
[1743423535622,1.207,593.88,593.07,0.33722832]
[1743423537827,1.207,593.88,593.13,2.5552563]
[1743423538129,1.207,593.88,593.14,0.33718852]
[1743423538831,1.207,593.88,593.16,2.5552563]
[1743423539132,1.207,593.88,593.17,0.33717146]
[1743423546937,1.518,593.87,593.17,0.33717146]
[1743423550138,1.518,593.87,593.28,2.5552563]
[1743423550537,1.518,593.87,593.29,0.33710327]
[1743423554743,3.2,593.86,593.29,0.33710327]
[1743423555138,0.322,593.85,593.29,0.33710327]
[1743423558148,1.544,593.84,593.29,0.33710327]
[1743423559548,1.544,593.84,593.49,2.5552563]
[1743423559744,1.544,593.84,593.5,0.33698399]
[1743423560342,1.544,593.84,593.5,2.89224029]
[1743423562046,1.544,593.84,593.5,0.33698399]
[1743423571167,0.322,593.83,593.5,0.33698399]
[1743423572069,1.859,593.83,593.5,0.33698399]
[1743423577271,3.719,593.83,593.5,0.33698399]
[1743423578472,5.235,593.83,593.5,0.33698399]
[1743423588776,6.577,593.83,593.5,0.33698399]
[1743423595381,6.577,593.83,593.51,2.5552563]
[1743423595682,6.577,593.83,593.52,0.33697263]
[1743423597883,6.577,593.83,593.6,2.5552563]
[1743423598080,6.577,593.83,593.61,0.33692154]
[1743423598280,2.858,593.83,593.61,0.33692154]
[1743423599278,2.858,593.83,593.61,2.89217784]
[1743423600686,1.342,593.83,593.63,2.5552563]
[1743423600885,1.342,593.83,593.64,0.33690452]
[1743423609492,1.342,593.83,593.73,2.5552563]
[1743423609686,1.342,593.83,593.74,0.33684777]
[1743423610996,0.32930559,593.83,593.74,0.33684777]
[1743423611196,3.069,593.86,593.74,0.33684777]
[1743423611791,1.00006052,594.84,593.74,0.33684777]
[1743423614591,1.00006052,594.84,593.78,2.5552563]
[1743423614795,1.00006052,594.84,593.8,0.33681374]
[1743423646631,1.00006052,594.84,593.88,2.5552563]
[1743423646828,1.00006052,594.84,593.9,0.33675702]
[1743423658233,1.00006052,594.84,593.96,2.5552563]
[1743423658433,1.00006052,594.84,593.98,0.33671167]
[1743423660338,1.00006052,594.84,594.22,2.5552563]
[1743423660536,1.00006052,594.84,594.23,0.33657001]
[1743423668840,1.00006052,594.84,594.29,2.5552563]
[1743423669041,1.00006052,594.84,594.3,0.33653037]
[1743423708982,8.232,594.95,594.3,0.33653037]
[1743423723892,1.26642312,594.94,594.3,0.33653037]
[1743423724393,1.26642312,594.93,594.3,0.33653037]
[1743423725686,3.94365388,595.23,594.3,0.33653037]
[1743423725889,6.40810753,595.22,594.3,0.33653037]
[1743423726088,6.40810753,595.21,594.3,0.33653037]
[1743423726289,6.40810753,595.2,594.3,0.33653037]
[1743423726485,6.40810753,595.19,594.3,0.33653037]
[1743423726690,6.40810753,595.18,594.3,0.33653037]
[1743423726991,6.4078008,595.17,594.3,0.33653037]
[1743423727190,3.96402635,595.18,594.3,0.33653037]
[1743423727191,4.87370406,595.16,594.3,0.33653037]
[1743423727392,6.40769402,595.15,594.3,0.33653037]
[1743423727592,6.28870406,595.14,594.3,0.33653037]
[1743423727791,2.46445365,595.13,594.3,0.33653037]
[1743423727987,2.46445365,595.12,594.3,0.33653037]
[1743423728191,2.46445365,595.11,594.3,0.33653037]
[1743423728387,2.46396111,595.1,594.3,0.33653037]
[1743423728686,5.75602022,595.09,594.3,0.33653037]
[1743423728891,2.46396111,595.08,594.3,0.33653037]
[1743423729086,2.46396111,595.07,594.3,0.33653037]
[1743423729290,1.26617658,595.07,594.3,0.33653037]
[1743423729887,1.26617658,595.06,594.3,0.33653037]
[1743423730294,1.26617658,595.05,594.3,0.33653037]
[1743423730889,1.26617658,595.04,594.3,0.33653037]
[1743423731593,1.26617658,595.03,594.3,0.33653037]
[1743423732093,2.4635955,595.02,594.3,0.33653037]
[1743423732291,1.26617658,595.03,594.3,0.33653037]
[1743423732487,2.46352836,595.02,594.3,0.33653037]
[1743423732690,2.46352836,595.01,594.3,0.33653037]
[1743423732890,1.26617658,595.02,594.3,0.33653037]
[1743423733087,1.454,595.12,594.3,0.33653037]
[1743423733393,4.87135357,595.11,594.3,0.33653037]
[1743423733589,2.4634265,595.1,594.3,0.33653037]
[1743423733788,2.4634265,595.09,594.3,0.33653037]
[1743423733991,2.4634265,595.08,594.3,0.33653037]
[1743423734190,2.4634265,595.07,594.3,0.33653037]
[1743423734487,2.46342349,595.06,594.3,0.33653037]
[1743423734688,2.46342349,595.05,594.3,0.33653037]
[1743423734988,2.46342349,595.04,594.3,0.33653037]
[1743423735194,2.46342349,595.03,594.3,0.33653037]
[1743423735392,4.79557056,595.02,594.3,0.33653037]
[1743423735687,1.5049531,595.01,594.3,0.33653037]
[1743423735893,1.2656221,595.01,594.3,0.33653037]
[1743423736289,2.46354796,595.0,594.3,0.33653037]
[1743423736494,2.46354796,594.99,594.3,0.33653037]
[1743423736695,2.46354796,594.98,594.3,0.33653037]
[1743423736893,2.46354796,594.97,594.3,0.33653037]
[1743423737090,2.46354796,594.96,594.3,0.33653037]
[1743423737291,1.50503799,594.95,594.3,0.33653037]
[1743423737490,1.50503799,594.94,594.3,0.33653037]
[1743423737687,3.29084405,594.94,594.3,0.33653037]
[1743423737892,1.50489935,594.93,594.3,0.33653037]
[1743423738093,3.29084405,594.94,594.3,0.33653037]
[1743423738294,4.79555221,594.93,594.3,0.33653037]
[1743423738496,3.29084405,594.93,594.3,0.33653037]
[1743423738795,2.77036777,594.92,594.3,0.33653037]
[1743423738994,1.50474567,594.91,594.3,0.33653037]
[1743423739296,1.2656221,594.9,594.3,0.33653037]
[1743423739896,1.2656221,594.89,594.3,0.33653037]
[1743423740492,1.50429212,594.88,594.3,0.33653037]
[1743423740697,1.50429212,594.87,594.3,0.33653037]
[1743423740892,3.28983727,594.88,594.3,0.33653037]
[1743423741095,3.28983727,594.87,594.3,0.33653037]
[1743423741696,2.76943153,594.86,594.3,0.33653037]
[1743423741895,1.2656221,594.86,594.3,0.33653037]
[1743423742498,3.7264297,594.85,594.3,0.33653037]
[1743423742697,2.4608076,594.84,594.3,0.33653037]
[1743423742900,2.4608076,594.83,594.3,0.33653037]
[1743423743100,1.50332564,594.82,594.3,0.33653037]
[1743423743297,3.28864712,594.85,594.3,0.33653037]
[1743423743494,1.2656221,594.81,594.3,0.33653037]
[1743423744095,2.76824428,594.8,594.3,0.33653037]
[1743423744295,1.2656221,594.8,594.3,0.33653037]
[1743423744500,2.8456221,594.79,594.3,0.33653037]
[1743423745399,1.2656221,594.78,594.3,0.33653037]
[1743423746199,1.2656221,594.77,594.3,0.33653037]
[1743423747104,1.2656221,594.76,594.3,0.33653037]
[1743423747603,1.58,594.79,594.3,0.33653037]
[1743423750003,2.90081727,594.78,594.3,0.33653037]
[1743423750205,3.22181727,594.78,594.3,0.33653037]
[1743423751001,1.26081727,594.77,594.3,0.33653037]
[1743423751203,2.76381727,594.77,594.3,0.33653037]
[1743423751397,1.211,594.76,594.3,0.33653037]
[1743423751798,2.47181727,594.76,594.3,0.33653037]
[1743423752504,1.211,594.76,594.3,0.33653037]
[1743423757999,1.607,594.75,594.3,0.33653037]
[1743423765703,2.18,594.74,594.3,0.33653037]
[1743423771214,1.532,594.73,594.3,0.33653037]
[1743423774115,1.127,594.72,594.3,0.33653037]
[1743423775118,0.321,594.71,594.3,0.33653037]
[1743423781622,1.666,594.7,594.3,0.33653037]
[1743423791639,2.964,594.7,594.3,0.33653037]
[1743423791840,4.797,594.7,594.3,0.33653037]
[1743423799149,6.678,594.7,594.3,0.33653037]
[1743423806151,6.999,594.7,594.3,0.33653037]
[1743423813359,8.617,594.7,594.3,0.33653037]
[1743423832075,1.26129256,594.69,594.3,0.33653037]
[1743423832875,1.833,594.7,594.3,0.33653037]
[1743423833873,1.26116364,594.69,594.3,0.33653037]
[1743423834376,1.833,594.7,594.3,0.33653037]
[1743423835075,3.436,594.7,594.3,0.33653037]
[1743423835677,5.261,594.7,594.3,0.33653037]
[1743423835877,6.663,594.7,594.3,0.33653037]
[1743423836078,1.2612215,594.69,594.3,0.33653037]
[1743423836982,8.189,594.7,594.3,0.33653037]
[1743423846383,1.26194759,594.69,594.3,0.33653037]
[1743423846985,1.26194759,594.68,594.3,0.33653037]
[1743423847587,1.26194759,594.67,594.3,0.33653037]
[1743423848189,1.26194759,594.66,594.3,0.33653037]
[1743423848690,6.356,594.7,594.3,0.33653037]
[1743423849394,1.26201815,594.69,594.3,0.33653037]
[1743423849891,1.26201815,594.68,594.3,0.33653037]
[1743423850285,1.26201815,594.67,594.3,0.33653037]
[1743423850791,1.26201815,594.66,594.3,0.33653037]
[1743423851388,1.26201815,594.65,594.3,0.33653037]
[1743423851887,1.31,594.69,594.3,0.33653037]
[1743423856694,2.445,594.69,594.3,0.33653037]
[1743423857794,3.919,594.69,594.3,0.33653037]
[1743423864999,5.197,594.69,594.3,0.33653037]
[1743423868197,5.518,594.69,594.3,0.33653037]
[1743423872695,6.919,594.69,594.3,0.33653037]
[1743423882407,1.26309037,594.68,594.3,0.33653037]
[1743423883004,1.26309037,594.67,594.3,0.33653037]
[1743423883806,4.31,594.69,594.3,0.33653037]
[1743423885813,5.599,594.69,594.3,0.33653037]
[1743423886411,6.762,594.69,594.3,0.33653037]
[1743423915431,1.67273362,595.72,594.3,0.33653037]
[1743423915626,7.53378106,595.71,594.3,0.33653037]
[1743423915824,7.53378106,595.7,594.3,0.33653037]
[1743423916028,7.53378106,595.69,594.3,0.33653037]
[1743423916231,7.03012781,595.68,594.3,0.33653037]
[1743423916425,7.03012781,595.67,594.3,0.33653037]
[1743423916626,6.35859014,595.66,594.3,0.33653037]
[1743423916829,6.35859014,595.65,594.3,0.33653037]
[1743423917030,7.53385799,595.64,594.3,0.33653037]
[1743423917234,7.53385799,595.63,594.3,0.33653037]
[1743423917524,7.03015007,595.62,594.3,0.33653037]
[1743423917725,7.03015007,595.61,594.3,0.33653037]
[1743423918031,12.72446698,595.6,594.3,0.33653037]
[1743423918232,6.35859014,595.59,594.3,0.33653037]
[1743423918526,6.35859014,595.58,594.3,0.33653037]
[1743423918731,6.35859014,595.57,594.3,0.33653037]
[1743423918931,6.35859014,595.56,594.3,0.33653037]
[1743423919132,6.35859014,595.55,594.3,0.33653037]
[1743423919330,6.35859014,595.54,594.3,0.33653037]
[1743423919529,6.35609996,595.53,594.3,0.33653037]
[1743423919827,4.8282205,595.52,594.3,0.33653037]
[1743423920033,4.8282205,595.51,594.3,0.33653037]
[1743423920332,8.76648302,595.5,594.3,0.33653037]
[1743423920529,4.8282205,595.49,594.3,0.33653037]
[1743423920733,2.44158882,595.48,594.3,0.33653037]
[1743423920934,2.44158882,595.47,594.3,0.33653037]
[1743423921133,2.44158882,595.46,594.3,0.33653037]
[1743423921335,1.49103239,595.45,594.3,0.33653037]
[1743423921533,3.26672426,595.47,594.3,0.33653037]
[1743423922137,1.25643241,595.46,594.3,0.33653037]
[1743423922531,1.25643241,595.45,594.3,0.33653037]
[1743423923536,1.25643241,595.44,594.3,0.33653037]
[1743423923931,1.25643241,595.43,594.3,0.33653037]
[1743423924836,1.25643241,595.42,594.3,0.33653037]
[1743423925641,3.26017978,595.41,594.3,0.33653037]
[1743423926338,1.25643241,595.4,594.3,0.33653037]
[1743423927236,1.25643241,595.39,594.3,0.33653037]
[1743423927435,2.731,595.57,594.3,0.33653037]
[1743423927636,7.005167,595.56,594.3,0.33653037]
[1743423927836,6.33357947,595.55,594.3,0.33653037]
[1743423928137,5.68990465,595.54,594.3,0.33653037]
[1743423928338,2.4359921,595.53,594.3,0.33653037]
[1743423928636,2.4359921,595.52,594.3,0.33653037]
[1743423928839,1.48823,595.51,594.3,0.33653037]
[1743423929037,1.48795216,595.5,594.3,0.33653037]
[1743423929233,3.25391255,595.52,594.3,0.33653037]
[1743423929431,1.48779793,595.51,594.3,0.33653037]
[1743423929634,1.48779793,595.5,594.3,0.33653037]
[1743423929831,3.25391255,595.51,594.3,0.33653037]
[1743423930035,1.48767906,595.5,594.3,0.33653037]
[1743423930236,3.25391255,595.49,594.3,0.33653037]
[1743423930431,3.25391255,595.48,594.3,0.33653037]
[1743423930834,2.731,595.57,594.3,0.33653037]
[1743423930835,1.25150483,595.47,594.3,0.33653037]
[1743423931036,1.25150483,595.46,594.3,0.33653037]
[1743423931635,1.57150483,595.45,594.3,0.33653037]
[1743423932434,1.25150483,595.44,594.3,0.33653037]
[1743423933337,1.25150483,595.43,594.3,0.33653037]
[1743423933735,1.248,595.42,594.3,0.33653037]
[1743423934141,1.25150483,595.41,594.3,0.33653037]
[1743423934537,1.25150483,595.4,594.3,0.33653037]
[1743423935144,1.248,595.42,594.3,0.33653037]
[1743423935746,1.416,595.41,594.3,0.33653037]
[1743423941146,1.112,595.4,594.3,0.33653037]
[1743423941548,1.717,595.39,594.3,0.33653037]
[1743423942552,1.717,595.39,594.34,2.5552563]
[1743423942753,1.717,595.39,594.36,0.33649639]
[1743423943954,1.717,595.39,594.39,2.5552563]
[1743423944753,1.717,595.39,594.41,0.33646809]
[1743423945154,1.717,595.39,594.54,2.5552563]
[1743423945355,1.717,595.39,594.56,0.3363832]
[1743423957462,1.112,595.4,594.56,0.3363832]
[1743423961461,1.122,595.39,594.56,0.3363832]
[1743423962765,0.321,595.38,594.56,0.3363832]
[1743423962962,1.954,595.38,594.56,0.3363832]
[1743423963163,1.465,595.37,594.56,0.3363832]
[1743423963365,1.465,595.37,594.68,2.5552563]
[1743423963566,1.465,595.37,594.69,0.33630967]
[1743423965270,1.75,595.36,594.69,0.33630967]
[1743423974976,1.471,595.35,594.69,0.33630967]
[1743423977579,1.471,595.35,594.7,2.5552563]
[1743423977779,1.471,595.35,594.71,0.33629836]
[1743423980077,0.321,595.34,594.71,0.33629836]
[1743423987976,1.453,595.33,594.71,0.33629836]
[1743423991286,2.891,595.33,594.71,0.33629836]
[1743423992885,4.318,595.33,594.71,0.33629836]
[1743423997089,4.318,595.33,595.04,2.5552563]
[1743423997286,4.318,595.33,595.05,0.3361062]
[1743423998792,4.318,595.33,595.05,2.8913625]
[1743424000287,4.318,595.33,595.05,0.3361062]
[1743424006789,5.435,595.33,595.05,0.3361062]
[1743424008891,6.968,595.33,595.05,0.3361062]
[1743424009798,7.289,595.33,595.05,0.3361062]
[1743424162030,7.289,595.33,595.18,2.5552563]
[1743424162227,1.67143691,596.45,595.19,0.33602715]
[1743424162427,6.38960661,596.44,595.19,0.33602715]
[1743424162635,6.38960661,596.43,595.19,0.33602715]
[1743424162835,6.38960661,596.42,595.19,0.33602715]
[1743424163136,6.3895697,596.41,595.19,2.89128345]
[1743424163332,4.85989948,596.4,595.19,2.89128345]
[1743424163633,5.73985942,596.39,595.19,2.89128345]
[1743424163832,2.45752681,596.38,595.19,2.89128345]
[1743424164034,2.45752681,596.37,595.19,2.89128345]
[1743424164233,3.28233261,596.39,595.19,2.89128345]
[1743424164234,1.50148292,596.36,595.19,2.89128345]
[1743424164534,3.02348292,596.35,595.19,2.89128345]
[1743424164730,1.522,596.35,595.19,2.89128345]
[1743424164930,2.76285296,596.34,595.19,2.89128345]
[1743424165132,1.58443562,596.34,595.19,0.33602715]
[1743424165330,2.83,596.33,595.19,0.33602715]
[1743424165635,1.26243562,596.32,595.19,0.33602715]
[1743424166035,2.96543562,596.32,595.19,0.33602715]
[1743424166236,1.26243562,596.31,595.19,0.33602715]
[1743424166742,1.26243562,596.3,595.19,0.33602715]
[1743424167640,1.703,596.32,595.19,0.33602715]
[1743424167840,4.85261534,596.31,595.19,0.33602715]
[1743424168140,2.45384761,596.3,595.19,0.33602715]
[1743424168341,2.45384761,596.29,595.19,0.33602715]
[1743424168641,1.49922983,596.28,595.19,0.33602715]
[1743424168835,1.703,596.32,595.19,0.33602715]
[1743424169036,1.49883684,596.31,595.19,0.33602715]
[1743424169236,1.26019382,596.28,595.19,0.33602715]
[1743424169941,1.26019382,596.27,595.19,0.33602715]
[1743424170735,1.26019382,596.26,595.19,0.33602715]
[1743424171539,1.26019382,596.25,595.19,0.33602715]
[1743424172142,1.26019382,596.24,595.19,0.33602715]
[1743424172641,1.703,596.32,595.19,0.33602715]
[1743424173034,1.25877454,596.31,595.19,0.33602715]
[1743424173945,1.25877454,596.3,595.19,0.33602715]
[1743424174937,1.25877454,596.29,595.19,0.33602715]
[1743424175641,1.25877454,596.28,595.19,0.33602715]
[1743424176041,1.25877454,596.27,595.19,0.33602715]
[1743424176641,5.09199357,596.56,595.19,0.33602715]
[1743424176842,7.03798101,596.55,595.19,0.33602715]
[1743424177045,7.03798101,596.54,595.19,0.33602715]
[1743424177239,7.03798101,596.53,595.19,0.33602715]
[1743424177442,6.36733231,596.52,595.19,0.33602715]
[1743424177639,6.36733231,596.51,595.19,0.33602715]
[1743424177844,6.36733231,596.5,595.19,0.33602715]
[1743424178144,10.30884708,596.49,595.19,0.33602715]
[1743424178346,6.36733231,596.48,595.19,0.33602715]
[1743424178547,6.36733231,596.47,595.19,0.33602715]
[1743424178848,6.36733231,596.46,595.19,0.33602715]
[1743424179044,4.84298568,596.45,595.19,0.33602715]
[1743424179346,5.71983951,596.44,595.19,0.33602715]
[1743424179548,2.44897396,596.43,595.19,0.33602715]
[1743424179844,2.44897396,596.42,595.19,0.33602715]
[1743424180046,2.44897396,596.41,595.19,0.33602715]
[1743424180249,2.44897396,596.4,595.19,0.33602715]
[1743424180442,0.95271664,596.39,595.19,0.33602715]
[1743424180642,2.44842335,596.38,595.19,0.33602715]
[1743424180846,5.7192889,596.37,595.19,0.33602715]
[1743424181048,1.49570671,596.36,595.19,0.33602715]
[1743424181249,3.193,596.36,595.19,0.33602715]
[1743424181641,1.25802521,596.35,595.19,0.33602715]
[1743424182142,1.58002521,596.34,595.19,0.33602715]
[1743424182346,3.22102521,596.34,595.19,0.33602715]
[1743424182847,1.25802521,596.33,595.19,0.33602715]
[1743424183252,1.25802521,596.32,595.19,0.33602715]
[1743424183953,3.70546432,596.31,595.19,0.33602715]
[1743424184255,5.71718621,596.3,595.19,0.33602715]
[1743424184450,2.44743911,596.29,595.19,0.33602715]
[1743424184648,2.44743911,596.28,595.19,0.33602715]
[1743424184950,2.44743911,596.27,595.19,0.33602715]
[1743424185252,2.44743911,596.26,595.19,0.33602715]
[1743424185454,2.44760743,596.25,595.19,0.33602715]
[1743424185754,5.71737504,596.24,595.19,0.33602715]
[1743424186053,1.49532185,596.23,595.19,0.33602715]
[1743424186253,3.2697471,596.23,595.19,0.33602715]
[1743424186456,2.4480829,596.22,595.19,0.33602715]
[1743424186751,2.44814436,596.21,595.19,0.33602715]
[1743424186954,2.44814436,596.2,595.19,0.33602715]
[1743424187149,1.4957509,596.19,595.19,0.33602715]
[1743424187352,3.2697471,596.2,595.19,0.33602715]
[1743424187550,1.25802521,596.18,595.19,0.33602715]
[1743424188149,1.25802521,596.17,595.19,0.33602715]
[1743424189050,1.25802521,596.16,595.19,0.33602715]
[1743424189556,1.25802521,596.15,595.19,0.33602715]
[1743424189948,1.25802521,596.14,595.19,0.33602715]
[1743424190854,1.25802521,596.13,595.19,0.33602715]
[1743424191255,3.91859433,596.3,595.19,0.33602715]
[1743424191554,4.84339417,596.29,595.19,0.33602715]
[1743424191757,2.44926573,596.28,595.19,0.33602715]
[1743424191953,2.44926573,596.27,595.19,0.33602715]
[1743424192150,2.44926573,596.26,595.19,0.33602715]
[1743424192457,2.44926573,596.25,595.19,0.33602715]
[1743424192657,2.44930938,596.24,595.19,0.33602715]
[1743424192856,1.49641789,596.23,595.19,0.33602715]
[1743424193057,4.76773566,596.22,595.19,0.33602715]
[1743424193351,3.27131777,596.22,595.19,0.33602715]
[1743424193558,1.25819914,596.21,595.19,0.33602715]
[1743424193957,2.44969876,596.2,595.19,0.33602715]
[1743424194158,2.44969876,596.19,595.19,0.33602715]
[1743424194354,2.44988879,596.18,595.19,0.33602715]
[1743424194555,2.44988879,596.17,595.19,0.33602715]
[1743424194753,5.72159148,596.16,595.19,0.33602715]
[1743424195059,1.49679067,596.15,595.19,0.33602715]
[1743424195357,1.49686322,596.14,595.19,0.33602715]
[1743424195550,3.27168587,596.15,595.19,0.33602715]
[1743424195754,1.25819914,596.13,595.19,0.33602715]
[1743424195956,1.49695107,596.12,595.19,0.33602715]
[1743424196155,1.25819914,596.13,595.19,0.33602715]
[1743424196356,1.58019914,596.11,595.19,0.33602715]
[1743424197055,1.25819914,596.1,595.19,0.33602715]
[1743424197558,1.25819914,596.09,595.19,0.33602715]
[1743424198157,6.37126537,596.08,595.19,0.33602715]
[1743424198354,4.84590955,596.07,595.19,0.33602715]
[1743424198551,2.45045851,596.06,595.19,0.33602715]
[1743424198752,2.45045851,596.05,595.19,0.33602715]
[1743424198958,2.45045851,596.04,595.19,0.33602715]
[1743424199256,2.45045851,596.03,595.19,0.33602715]
[1743424199457,3.27237997,596.05,595.19,0.33602715]
[1743424199458,2.45045851,596.02,595.19,0.33602715]
[1743424199657,2.45045851,596.01,595.19,0.33602715]
[1743424199853,3.27237997,596.03,595.19,0.33602715]
[1743424199854,1.49713074,596.0,595.19,0.33602715]
[1743424200058,1.49713074,595.99,595.19,0.33602715]
[1743424200260,3.27237997,596.0,595.19,0.33602715]
[1743424200458,1.49709943,595.99,595.19,0.33602715]
[1743424200658,3.27237997,596.0,595.19,0.33602715]
[1743424200860,1.49708924,595.99,595.19,0.33602715]
[1743424201061,3.27237997,595.99,595.19,0.33602715]
[1743424201662,1.25819914,595.98,595.19,0.33602715]
[1743424202663,1.25819914,595.97,595.19,0.33602715]
[1743424203661,1.25819914,595.96,595.19,0.33602715]
[1743424204062,1.37,595.95,595.19,0.33602715]
[1743424204561,2.865,595.95,595.19,0.33602715]
[1743424206262,1.25882858,595.94,595.19,0.33602715]
[1743424206965,1.25882858,595.93,595.19,0.33602715]
[1743424207571,1.25882858,595.92,595.19,0.33602715]
[1743424207973,2.865,595.95,595.19,0.33602715]
[1743424208774,1.49704023,595.94,595.19,0.33602715]
[1743424208972,1.49706204,595.93,595.19,0.33602715]
[1743424209273,2.45047204,595.92,595.19,0.33602715]
[1743424209470,2.44998325,595.91,595.19,0.33602715]
[1743424209773,5.72281572,595.9,595.19,0.33602715]
[1743424209975,1.49681758,595.89,595.19,0.33602715]
[1743424210169,1.49681758,595.88,595.19,0.33602715]
[1743424210367,1.4965233,595.87,595.19,0.33602715]